Cogmind - Beta 11.1 @@@ ROGUE MODE // 2022.07.13 @ 23:59:11 Player: Sigil Result: Destroyed by as-44877 with Assembled Rifle Performance ------------- Evolutions (0) 0 Regions Visited (2) 400 Robots Destroyed (20) 100 Value Destroyed (280) 280 Prototype IDs (0) 0 Alien Tech Used (0) 0 Bonus (0) 0 TOTAL SCORE: 780 Bonus ------- None Cogmind --------- Core Integrity 0/250 Matter 270/300 Energy 100/100 System Corruption 0% Temperature Cool (3) Movement Flying (40) Location -10/Mines Parts ------- > --- POWER (1) -------- (None) > --- PROPULSION (2) --- Flight Unit > --- UTILITY (2) ------ Sensor Array > --- WEAPON (2) ------- (None) > --- INVENTORY (5) ---- Light Ion Engine High-capacity Storage Unit Light Assault Rifle Peak State ------------ > --- POWER ------------ Ion Engine > --- PROPULSION ------- Light Treads Light Treads > --- UTILITY ---------- High-capacity Storage Unit Signal Interpreter > --- WEAPON ----------- Small Laser Assault Rifle > --- INVENTORY -------- Light Ion Engine Light Treads Light Treads Small Storage Unit High-capacity Storage Unit High-capacity Storage Unit High-capacity Storage Unit Sensor Array Sensor Array Assault Rifle [Rating: 8] Favorites ----------- Power Ion Engine Engine Ion Engine Propulsion Light Treads Treads Light Treads Flight Unit Flight Unit Utility Signal Interpreter Device Sensor Array Storage High-capacity Storage Unit Processor Signal Interpreter Weapon Assault Rifle Energy Gun Small Laser Ballistic Gun Assault Rifle Build | -11 -10 -10 ------- Run | Scr Mat Min Slots Evolved . | . . . Power . | . . . Propulsion . | . . . Utility . | . . . Weapon . | . . . Parts Attached 15 | 5 4 6 Power 1 | . 1 . Engine 1 | . 1 . Core . | . . . Reactor . | . . . Propulsion 7 | 2 . 5 Treads 6 | 2 . 4 Leg . | . . . Wheel . | . . . Hover . | . . . Flight 1 | . . 1 Utility 4 | . 3 1 Device 2 | . 1 1 Storage 1 | . 1 . Processor 1 | . 1 . Hackware . | . . . Protection . | . . . Artifact . | . . . Weapon 3 | 3 . . Energy Gun 1 | 1 . . Energy Cannon . | . . . Ballistic Gun 2 | 2 . . Ballistic Cannon . | . . . Launcher . | . . . Special Weapon . | . . . Impact Weapon . | . . . Slashing Weapon . | . . . Piercing Weapon . | . . . Special Melee Weapon . | . . . Unidentified Prototypes . | . . . Parts Lost 4 | . . 4 Power 1 | . . 1 Propulsion 2 | . . 2 Utility . | . . . Weapon 1 | . . 1 Highest Loss Streak 4 | . . 4 To Critical Strikes . | . . . Average Slot Usage (%) 78 | . 84 54 Engine 6 | . 7 4 Treads 24 | . 28 11 Flight 1 | . . 7 Device 2 | . . 7 Storage 7 | . 7 5 Processor 10 | . 11 5 Energy Gun 12 | . 14 5 Ballistic Gun 12 | . 14 5 Naked Turns . | . . . Heaviest Build 48 | 3 48 48 Greatest Support 40 | 3 40 40 Greatest Overweight (x) 1 | . 1 1 Average Overweight (x) . | . . . Largest Inventory Capacity 20 | 5 20 20 Average Capacity 12 | 5 13 10 Most Carried 18 | 5 14 18 Average Carried 7 | 2 8 8 Final Capacity 20 | 5 20 5 Final Carried 14 | 5 14 3 Class Distribution -------------------- 100% | Mutant Dominant Class ---------------- Mutant | -10/Materials Mutant | -10/Mines Resources | -11 -10 -10 ----------- Run | Scr Mat Min Matter Collected 460 | 121 310 29 Remotely . | . . . Salvage Created 714 | . 698 16 Parts 50 | . 44 6 Haulers Intercepted 2 | . 2 . Recyclers Shooed 2 | . 2 . Parts Field Recycled . | . . . Retrieved Matter . | . . . Parts Self-Destructed . | . . . Prevented . | . . . Kills | -11 -10 -10 ------- Run | Scr Mat Min Combat Hostiles Destroyed 9 | . 7 2 Guns 9 | . 7 2 Classes Destroyed 8 | . 8 . Worker 1 | . 1 . Tunneler 1 | . 1 . Hauler 2 | . 2 . Recycler 3 | . 3 . Operator 1 | . 1 . Watcher 3 | . 3 . Swarmer 5 | . 3 2 Grunt 4 | . 4 . Best Kill Streak 5 | . 5 2 Combat Bots Only 3 | . 3 2 Max Kills in Single Turn 2 | . 2 1 Gunslinging . | . . . Exploded . | . . . Melee . | . . . Uniques/NPCs Destroyed . | . . . Combat | -11 -10 -10 -------- Run | Scr Mat Min Damage Taken 823 | . 279 544 Core 250 | . 80 170 Absorbed by Shields . | . . . Core Remaining (%) 100 | 100 . . Volleys Fired 52 | . 47 5 Largest 2 | . 2 2 Hottest 60 | . 60 60 Shots Fired 104 | . 94 10 Gun 104 | . 94 10 Cannon . | . . . Launcher . | . . . Special . | . . . Kinetic 52 | . 47 5 Thermal 52 | . 47 5 Explosive . | . . . Electromagnetic . | . . . Robot Hit Streak 15 | . 15 8 Robot Miss Streak 3 | . 3 2 Penetration Max . | . . . Secondary Targets 2 | . 1 1 Max Gunslinging Chain 1 | . 1 1 Shots Hit Robots 66 | . 60 6 Core Hits 30 | . 26 4 Critical Kills . | . . . Critical Parts Destroyed . | . . . Critical Strikes . | . . . Melee Attacks . | . . . Impact . | . . . Slashing . | . . . Piercing . | . . . Sneak Attacks . | . . . Combat Hostiles . | . . . Follow-up Attacks . | . . . Damage Inflicted 821 | . 742 79 Guns 821 | . 742 79 Cannons . | . . . Explosions . | . . . Melee . | . . . Ramming . | . . . Kinetic 388 | . 365 23 Thermal 433 | . 377 56 Explosive . | . . . Electromagnetic . | . . . Impact . | . . . Slashing . | . . . Piercing . | . . . Highest Corruption . | . . . Average Corruption . | . . . Corruption Purged . | . . . Corruption Blocked . | . . . Overload Shots . | . . . Overflow Damage . | . . . Projectiles . | . . . Explosions . | . . . Melee . | . . . Knockbacks . | . . . Impact . | . . . Kinetic . | . . . Secondary . | . . . Self-Inflicted Damage . | . . . Shots . | . . . Rammed . | . . . Targets Rammed . | . . . Kicked . | . . . Crushed . | . . . Highest Temperature 16 | . 16 . Average Temperature 6 | . 6 . Received Heat Transfer 120 | . 120 . Siege Activations . | . . . Robots Corrupted . | . . . Combat Hostiles . | . . . Parts Fried . | . . . Impact Corruptions . | . . . Robots Melted . | . . . Combat Hostiles . | . . . Parts Melted . | . . . Heat Transferred 975 | . 850 125 Parts Sabotaged . | . . . Parts Stolen . | . . . Parts Stripped . | . . . Power Chain Reactions . | . . . Missiles Intercepted . | . . . Alert | -11 -10 -10 ------- Run | Scr Mat Min Peak Influence 281 | . 281 109 Initial 44 | . . 44 Average 122 | . 146 52 Maximum Alert Level 1 | . 1 . Low Security (%) 76 | 100 69 100 Level 1 23 | . 30 . Level 2 . | . . . Level 3 . | . . . Level 4 . | . . . Level 5 . | . . . High Security . | . . . Max Security . | . . . Squads Dispatched 1 | . 1 . Investigation . | . . . Extermination . | . . . Reinforcement 1 | . 1 . Assault . | . . . Garrison . | . . . Intercept . | . . . Searches Triggered . | . . . Construction Impeded . | . . . Haulers Reinforced . | . . . Active Scanning Responses . | . . . Cargo Convoy Interrupts . | . . . Stealth | -11 -10 -10 --------- Run | Scr Mat Min Distress Signals 1 | . 1 . Communications Jammed . | . . . Distress Signals . | . . . Times Spotted 24 | . 13 11 Peak Tracking Total 4 | . 3 4 Tactical Retreats 2 | . 1 1 Traps | -11 -10 -10 ------- Run | Scr Mat Min Traps Triggered . | . . . Indirectly . | . . . Trap Hack Attempts . | . . . Triggered . | . . . Disarmed . | . . . Reprogrammed . | . . . Reused . | . . . Traps Extracted . | . . . Installed . | . . . Triggered . | . . . Machines | -11 -10 -10 ---------- Run | Scr Mat Min Machines Disabled . | . . . Max in Single Turn . | . . . Machines Sabotaged . | . . . Garrisons Compromised . | . . . Overloaded Fab Kills . | . . . Hacking | -11 -10 -10 --------- Run | Scr Mat Min Machines Accessed 2 | . 2 . Terminals 2 | . 2 . Fabricators . | . . . Repair Stations . | . . . Recycling Units . | . . . Scanalyzers . | . . . Garrison Access . | . . . Total Hacks 4 | . 4 . Successful . | . . . Failed 4 | . 4 . Catastrophic 1 | . 1 . Database Lockouts . | . . . Manual 4 | . 4 . Terminals 4 | . 4 . Fabricators . | . . . Repair Stations . | . . . Recycling Units . | . . . Scanalyzers . | . . . Garrison Access . | . . . Terminal Hacks . | . . . Fabricator Hacks . | . . . Repair Station Hacks . | . . . Recycling Unit Hacks . | . . . Scanalyzer . | . . . Garrison Access Hacks . | . . . Unauthorized Hacks . | . . . Terminals . | . . . Fabricators . | . . . Repair Stations . | . . . Recycling Units . | . . . Scanalyzers . | . . . Garrison Access . | . . . Data Cores Recovered . | . . . Used . | . . . Hacking Detections 2 | . 2 . Full Trace Events . | . . . Feedback Events . | . . . Feedback Blocked . | . . . Robot Schematics Acquired . | . . . Robots Built . | . . . Authchips . | . . . Time . | . . . Total Robot Build Rating . | . . . Part Schematics Acquired . | . . . Parts Built . | . . . Authchips . | . . . Time . | . . . Total Part Build Rating . | . . . Parts Repaired . | . . . Time . | . . . Parts Recycled . | . . . Recycled Matter . | . . . Retrieved Matter . | . . . Retrieved Components . | . . . Parts Scanalyzed . | . . . Part Schematics Acquired . | . . . Parts Damaged . | . . . Bothacking | -11 -10 -10 ------------ Run | Scr Mat Min Used RIF Installer . | . . . Robots Hacked . | . . . Non-combat . | . . . Combat . | . . . Robot Hacks Applied . | . . . Relay Couplers Released . | . . . Fabnet Peak Effective % . | . . . Robots Rewired . | . . . Allies Hacked . | . . . Hacks Repelled . | . . . Allies | -11 -10 -10 -------- Run | Scr Mat Min Total Allies 2 | . . 2 Largest Group . | . . . Highest-Rated Group . | . . . Highest-Rated Ally . | . . . Total Orders . | . . . Ally Attacks 1 | . . 1 Total Damage 21 | . . 21 Kills . | . . . Allies Corrupted . | . . . Allies Melted . | . . . Intel | -11 -10 -10 ------- Run | Scr Mat Min Robot Analysis Total . | . . . Derelict Logs Recovered . | . . . Drone Launches . | . . . Drone Recoveries . | . . . Exploration | -11 -10 -10 ------------- Run | Scr Mat Min Turns Passed 869 | 30 667 172 Spaces Moved 439 | 37 347 55 Core 273 | 37 213 23 Treads 152 | . 134 18 Legs . | . . . Wheels . | . . . Hover . | . . . Flight 14 | . . 14 Fastest Speed 40 | 50 50 40 Average Speed 117 | 50 126 109 Slowest Speed 240 | 50 240 240 Overloaded Moves . | . . . Propulsion Burnouts . | . . . Robots Hopped . | . . . Cave-ins Triggered . | . . . Exploration Rate (%) 24 | 4 49 19 Regions Visited 2 Branch Regions 1 Pre-discovered Areas . | . . . Known Exits Taken 1 | . 1 . Unknown Exits Taken 1 | 1 . . Scrap Searched . | . . . Spaces Dug . | . . . Terrain Destroyed . | . . . Melee . | . . . Projectile . | . . . AOE . | . . . Terrain Rammed . | . . . Walls Destroyed . | . . . Machines Disabled . | . . . Actions | -11 -10 -10 --------- Run | Scr Mat Min Total 685 | 46 482 157 Wait 152 | . 68 84 Move 437 | 36 346 55 Hop . | . . . Pick Up 21 | 4 13 4 Fast Attach 11 | 5 3 3 Attach 3 | . . 3 Detach 1 | 1 . . Swap 1 | . 1 . Drop 7 | . 4 3 Fire 52 | . 47 5 Melee . | . . . Ram . | . . . Kick . | . . . Crush . | . . . Escape Stasis . | . . . Rewire . | . . . Trap . | . . . Miscellaneous . | . . . Route ------- -11/Scrapyard -10/Materials -10/Mines History --------- Turn | Location | Event 2 | -11/Scrapyard | Discovered new exit (range 16) 31 | -11/Scrapyard | Entered Materials 171 | -10/Materials | Discovered new exit (range 6) 173 | -10/Materials | Identified exit to Mines 331 | -10/Materials | Build established: Mutant 698 | -10/Materials | Entered Mines 699 | -10/Mines | Assembled infested the area 704 | -10/Mines | Assisted by a Guerilla fighting off Assembled 762 | -10/Mines | Core integrity fell below 50% 762 | -10/Mines | Released all parts (4) 766 | -10/Mines | Core integrity fell below 20% 792 | -10/Mines | Lost 4 parts (1p2n1w) 870 | -10/Mines | Destroyed by as-44877 with Assembled Rifle Last Messages --------------- 00749_ The unstable cave ceiling collapses. 00757_ Lgt. Treads destroyed. 00758_ Ion Engine destroyed. 00759_ Lgt. Treads destroyed. 00761_ Sml. Laser destroyed. 00762_ The unstable cave ceiling collapses. 00762_ Released Assault Rifle. 00762_ Released Signal Interpreter. 00762_ Released Hcp. Storage Unit. 00762_ Released Lgt. Treads. 00762_ Acquired Lgt. Treads. 00766_ The unstable cave ceiling collapses. 00766_ Acquired Lgt. Treads. 00768_ The unstable cave ceiling collapses. 00768_ Assault Rifle crushed. 00770_ D-53 Grenadier destroyed. 00775_ Acquired 20 matter. 00776_ Dropped Lgt. Treads. 00856_ Acquired Lgt. Treads. 00857_ Dropped Lgt. Treads. Map ----- +----------------------------------------------------+ | | | | | | | | | | | | | | | ????????????????????????????????????????????????? | | ??###########???????????????????????????????????? | | ??# ?#?????????????????????????????????? | | ??# #?????????????????????????????????? | | ??# #?????????????????????????????????? | | ??# """ """ #?????????????????????????????????? | | ??# "" """ #?????????????????????????????????? | | ??# """ " " #?????????????????????????????????? | | ??# * % #?##??????????????????????????????? | | ??#% %* """ ### #####?????????????????????????? | | ??# = """ ## #???########??????????????? | | ??# *% """ #??## ##?????????????? | | ??# % #### #?????????????? | | ??#### # ## # ! # ##????????????? | | ???## % = a #????????????? | | ???# ! !!#! #????????????? | | ??# # #| ### ##???????????? | | ??# # [= ##?## ###?????????? | | ??# # @##???##==% #?????????? | | ??# # ## #?????## ##?????????? | | ?%%! ##### ### #??????#####??????????? | | ## =# ????# #?# ????????????????????? | | ?# ?????# #?## #???????????????????? | | ?## ????# #??# #???????????????????? | | ?? * # ???? #??## ##???????????????????? | | ?## %%* ???##????###???## #????????????????????? | | ?? = ????????????????# #????????????????????? | | ??? % ????????????????? #????????????????????? | | ?????" ??????????????????###????????????????????? | | ????????????????????????????????????????????????? | | ????????????????????????????????????????????????? | | ????????????????????????????????????????????????? | | ????????????????????????????????????????????????? | | ????????????????????????????????????????????????? | | ????????????????????????????????????????????????? | | ????????????????????????????????????????????????? | | ????????????????????????????????????????????????? | | ????????????????????????????????????????????????? | | ????????????????????????????????????????????????? | | ????????????????????????????????????????????????? | | ????????????????????????????????????????????????? | | ????????????????????????????????????????????????? | | ????????????????????????????????????????????????? | +----------------------------------------------------+ Best States ------------- Heat Dissipation 25 Energy Generation 10 Energy Capacity 250 Matter Stores 300 Matter Capacity 300 Sight Range 16 Robot Scan Range 14 Terrain Scan Density 10 Evasion (%) 62 Recoil Reduction 2 Item Schematics ----------------- None Robot Schematics ------------------ None Fabricated ------------ Nothing Alien Tech Used ----------------- None Achievements -------------- None Challenges ------------ None Game ------ Seed NullLatentSegregator Manual? 0 Play Time 00:12:36 Cumulative 68.7 hours Start 2022.07.13 @ 23:47:12 End 2022.07.13 @ 23:59:11 Sessions 1 Manual Loads 0 Difficulty Rogue Special Mode None Game No. 58 Rogue 58 Adventurer 0 Explorer 0 Win Type - Total 0 Types 0/0/0/0/0/0/0/0/0 Lore% 45 Gallery% 56 Achievement% 48 Wizard Run 0 Options --------- ASCII 0 Keyboard 0 Movement Numpad Keybinds 0 Fullscreen 1 Font 36/Smallcaps Map View 76x50 Tactical HUD 1 Map Filters NONE Filters NONE Steam 1 RUN: 760dfc62-b86f-4a89-b680-9db6a241126c